bitfinex/quotes_SOLUSD_20260125
["timestamp","ask_amount","ask_price","bid_price","bid_amount"]
[1769361313383,4.08007394,121.75,121.71,12.42797818]
[1769361313552,4.08007394,121.76,121.72,4.21176204]
[1769361316563,9.39309898,121.76,121.72,4.21176204]
[1769361317368,4.08007394,121.76,121.72,4.21176204]
[1769361318670,58.58059503,121.77,121.72,4.21176204]
[1769361318961,4.1204974,121.72,121.66,4.14902151]
[1769361319158,4.1204974,121.72,121.67,9.46204655]
[1769361319159,26.9404974,121.72,121.67,9.46204655]
[1769361319481,26.9404974,121.76,121.71,4.14902151]
[1769361319684,4.1204974,121.75,121.71,4.14902151]
[1769361320068,22.82,121.76,121.72,4.14902151]
[1769361320688,26.9404974,121.76,121.72,4.14902151]
[1769361321986,58.58059503,121.77,121.72,4.14902151]
[1769361322374,4.1204974,121.76,121.72,4.14902151]
[1769361322693,9.43352244,121.76,121.72,4.14902151]
[1769361322864,4.1204974,121.76,121.72,4.14902151]
[1769361323493,58.58059503,121.77,121.72,4.14902151]
[1769361323686,4.1204974,121.72,121.64,4.14902151]
[1769361323990,9.43352244,121.68,121.64,4.14902151]
[1769361324199,9.43352244,121.69,121.64,4.14902151]
[1769361324372,9.43352244,121.7,121.64,4.14902151]
[1769361324688,32.25352244,121.71,121.66,4.14902151]
[1769361324865,9.43352244,121.7,121.66,4.14902151]
[1769361325065,5.31302504,121.69,121.66,4.14902151]
[1769361325466,9.43352244,121.7,121.66,4.14902151]
[1769361326500,5.31302504,121.69,121.66,4.14902151]
[1769361326800,5.31302504,121.67,121.64,4.14902151]
[1769361327085,4.1204974,121.66,121.61,4.14902151]
[1769361327288,9.43352244,121.67,121.62,4.14902151]
[1769361327479,4.1204974,121.67,121.62,4.14902151]
[1769361327676,4.1204974,121.69,121.63,4.14902151]
[1769361327986,5.31302504,121.67,121.63,4.14902151]
[1769361328591,5.31302504,121.69,121.64,4.14902151]
[1769361328795,9.43352244,121.69,121.64,4.14902151]
[1769361329000,4.1204974,121.68,121.64,4.14902151]
[1769361330603,9.43352244,121.68,121.64,4.14902151]
[1769361330900,9.43352244,121.69,121.64,4.14902151]
[1769361331600,5.31302504,121.7,121.64,4.14902151]
[1769361331894,4.1204974,121.7,121.64,4.14902151]
[1769361332093,28.13302504,121.71,121.66,4.14902151]
[1769361332298,32.25352244,121.71,121.66,4.14902151]
[1769361332991,30.0,121.67,121.66,4.14902151]
[1769361333299,30.0,121.67,121.66,12.36864998]
[1769361334398,31.64009763,121.77,121.67,4.41300733]
[1769361334598,4.46731203,121.76,121.71,5.31302504]
[1769361334804,4.46731203,121.76,121.71,4.41300733]
[1769361335004,4.46731203,121.73,121.68,4.41300733]
[1769361335300,9.78033707,121.73,121.68,4.41300733]
[1769361335496,9.78033707,121.72,121.66,17.94566084]
[1769361335674,9.78033707,121.72,121.67,4.41300733]
[1769361335675,4.46731203,121.71,121.67,4.41300733]
[1769361335878,4.46731203,121.7,121.66,12.63260568]
[1769361336091,9.78033707,121.72,121.67,4.41300733]
[1769361336487,4.46731203,121.71,121.67,4.41300733]
[1769361336990,9.78033707,121.73,121.68,4.41300733]
[1769361337190,4.46731203,121.72,121.67,5.31302504]
[1769361337378,4.46731203,121.72,121.67,9.72603237]
[1769361337581,9.78033707,121.73,121.68,4.41300733]
[1769361337779,4.46731203,121.75,121.71,4.41300733]
[1769361338897,9.78033707,121.75,121.7,4.41300733]
[1769361339095,4.46731203,121.74,121.7,4.41300733]
[1769361341082,4.46731203,121.74,121.7,9.72603237]
[1769361341401,4.46731203,121.74,121.7,17.94291061]
[1769361341979,32.60033707,121.76,121.71,4.41300733]
[1769361342179,4.46731203,121.75,121.71,4.41300733]
[1769361344216,4.46731203,121.74,121.7,4.41300733]
[1769361346809,4.46731203,121.74,121.7,9.7223299]
[1769361347110,4.46731203,121.74,121.7,17.93902015]
[1769361347409,4.46731203,121.74,121.7,9.7223299]
[1769361347598,4.46731203,121.76,121.72,4.41300733]
[1769361348295,58.92740966,121.77,121.73,4.41300733]
[1769361349098,4.46731203,121.76,121.72,9.7223299]
[1769361350996,54.46009763,121.77,121.72,4.41300733]
[1769361351215,54.46009763,121.77,121.73,4.41300733]
[1769361351590,58.92740966,121.77,121.73,4.41300733]
[1769361351891,4.46731203,121.76,121.73,4.41300733]
[1769361353196,4.46731203,121.76,121.72,5.30932257]
[1769361353396,4.46731203,121.76,121.71,17.93832903]
[1769361353597,4.46731203,121.76,121.72,9.7223299]
[1769361357293,4.46731203,121.76,121.71,4.41300733]
[1769361362220,4.46731203,121.71,121.67,4.41300733]
[1769361362529,27.28731203,121.72,121.68,4.41300733]
[1769361362739,27.28731203,121.72,121.65,28.77073392]
[1769361362740,4.46731203,121.7,121.66,4.41300733]
[1769361362915,4.46731203,121.69,121.65,4.41300733]
[1769361363504,9.48586559,121.68,121.63,4.11530349]
[1769361364623,9.48586559,121.67,121.63,4.11530349]
[1769361365130,4.17654302,121.67,121.63,4.11530349]
[1769361365423,4.17654302,121.67,121.63,12.33688758]
[1769361365624,4.17654302,121.67,121.63,17.64621015]
[1769361366205,4.17654302,121.67,121.63,9.42462606]
[1769361366597,4.17654302,121.7,121.66,5.30932257]
[1769361366801,4.17654302,121.74,121.69,5.30932257]
[1769361367423,4.17654302,121.74,121.69,9.42462606]
[1769361369226,4.17654302,121.74,121.7,9.42462606]
[1769361369919,4.17654302,121.75,121.72,5.30932257]
[1769361370996,22.82,121.76,121.65,41.09895497]
[1769361370997,26.99654302,121.76,121.65,41.06067376]
[1769361371210,26.99654302,121.76,121.73,5.30932257]
[1769361371423,31.64009763,121.77,121.75,5.30932257]
[1769361372634,31.64009763,121.77,121.76,5.30932257]
[1769361373334,4.17654302,121.76,121.7,4.11530349]
[1769361373537,31.64009763,121.77,121.75,9.42462606]
[1769361374426,22.82,121.81,121.73,5.30932257]
[1769361374606,22.82,121.81,121.73,9.42462606]
[1769361374932,5.30932257,121.8,121.75,9.71885385]
[1769361375613,5.30932257,121.79,121.74,9.71885385]
[1769361375814,22.82,121.81,121.75,4.40953128]
[1769361376010,28.12932257,121.81,121.75,9.71885385]
[1769361376337,28.12932257,121.81,121.74,9.71885385]
[1769361376338,5.30932257,121.8,121.74,9.71885385]
[1769361376527,4.10987117,121.79,121.75,4.40953128]
[1769361377109,4.10987117,121.77,121.73,4.40953128]
[1769361377540,4.10987117,121.75,121.71,4.40953128]
[1769361377708,4.10987117,121.74,121.71,4.40953128]
[1769361378127,4.10987117,121.73,121.68,12.62753854]
[1769361378308,4.10987117,121.73,121.68,9.71885385]
[1769361379137,4.10987117,121.73,121.69,4.40953128]
[1769361379438,4.10987117,121.77,121.73,4.40953128]
[1769361380727,4.10987117,121.77,121.74,5.30932257]
[1769361380930,4.10987117,121.77,121.73,9.71885385]
[1769361382324,8.39678246,121.78,121.74,4.40953128]
[1769361383533,9.41919374,121.8,121.75,4.40953128]
[1769361383715,4.10987117,121.79,121.75,4.40953128]
[1769361384331,4.10987117,121.78,121.75,4.40953128]
[1769361387037,4.10987117,121.79,121.75,4.40953128]
[1769361391442,4.10987117,121.79,121.75,9.71885385]
[1769361391648,4.28613844,121.8,121.77,4.40953128]
[1769361391949,4.10987117,121.81,121.77,4.40953128]
[1769361394544,8.62478945,121.82,121.77,4.40953128]
[1769361394731,4.28548245,121.82,121.8,4.41294693]
[1769361395041,4.339307,121.82,121.78,4.41294693]
[1769361395826,4.339307,121.8,121.76,9.7222695]
[1769361396025,9.64862957,121.8,121.76,4.41294693]
[1769361396224,4.339307,121.8,121.76,4.41294693]
[1769361396821,4.339307,121.79,121.75,4.41294693]
[1769361397426,3.76003373,121.8,121.76,4.41294693]
[1769361397626,3.76003373,121.8,121.76,9.7222695]
[1769361397931,3.76003373,121.8,121.77,4.41294693]
[1769361398828,4.339307,121.81,121.77,9.7222695]
[1769361399027,4.339307,121.81,121.78,4.41294693]
[1769361399428,9.64862957,121.83,121.79,4.41294693]
[1769361399733,4.339307,121.82,121.79,4.41294693]
[1769361399934,4.339307,121.82,121.78,9.7222695]
[1769361400819,4.339307,121.82,121.78,4.41294693]
[1769361402420,4.339307,121.81,121.76,5.30932257]
[1769361402624,4.339307,121.8,121.75,17.93546811]
[1769361402828,4.339307,121.8,121.75,9.7222695]
[1769361403031,4.339307,121.8,121.76,4.41294693]
[1769361404551,4.339307,121.8,121.77,4.41294693]
[1769361408047,4.339307,121.82,121.77,9.71689494]
[1769361409450,4.339307,121.77,121.71,4.41294693]
[1769361409638,9.64325501,121.75,121.71,4.41294693]
[1769361410045,4.339307,121.75,121.71,4.41294693]
[1769361410436,9.64325501,121.76,121.71,4.41294693]
[1769361411637,9.64325501,121.76,121.72,4.41294693]
[1769361413563,9.64325501,121.75,121.7,12.6296198]
[1769361413860,5.30394801,121.74,121.7,4.41294693]
[1769361414158,9.64325501,121.75,121.71,4.41294693]
[1769361415063,4.339307,121.75,121.71,4.41294693]
[1769361416159,9.64325501,121.76,121.71,4.41294693]
[1769361416939,4.339307,121.75,121.71,4.41294693]
[1769361418055,4.339307,121.75,121.72,4.41294693]
[1769361419361,4.339307,121.76,121.72,4.41294693]
[1769361420360,2.31210142,121.77,121.72,12.62831031]
[1769361420548,6.65140842,121.78,121.74,4.41294693]
[1769361421852,4.339307,121.78,121.74,4.41294693]
[1769361423043,6.65140842,121.78,121.74,4.41294693]
[1769361423250,6.58703626,121.78,121.74,4.41294693]
[1769361426648,4.27493484,121.78,121.74,4.41294693]
[1769361426948,6.58703626,121.78,121.74,4.41294693]
[1769361427668,2.31210142,121.79,121.75,4.20703947]
[1769361427870,4.27493484,121.8,121.76,4.20703947]
[1769361428163,4.27493484,121.8,121.76,2.31210142]
[1769361428343,6.58703626,121.82,121.78,4.20703947]
[1769361428549,6.58703626,121.81,121.75,4.20703947]
[1769361428762,4.27493484,121.8,121.77,4.20703947]
[1769361429660,2.31210142,121.81,121.77,4.20703947]
[1769361429961,4.27493484,121.82,121.78,4.20703947]
[1769361430147,6.58703626,121.83,121.78,4.20703947]
[1769361430765,4.28536837,121.84,121.81,4.20703947]
[1769361431254,8.56030321,121.84,121.81,4.20703947]
[1769361432156,4.28536837,121.84,121.81,6.51914089]
[1769361432363,4.28536837,121.84,121.83,4.20703947]
[1769361432558,4.27493484,121.87,121.84,4.20703947]
[1769361432759,4.27493484,121.87,121.83,4.20703947]
[1769361432964,8.55591609,121.87,121.83,4.20703947]
[1769361433167,6.59308267,121.87,121.83,4.20703947]
[1769361433363,4.27493484,121.86,121.83,4.20703947]
[1769361435373,6.58703626,121.86,121.83,4.20703947]
[1769361435568,4.27493484,121.86,121.83,4.20703947]
[1769361436471,4.4323742,121.84,121.81,4.3421142]
[1769361436658,9.73147718,121.84,121.81,4.3421142]
[1769361437048,4.4323742,121.84,121.81,4.3421142]
[1769361437274,3.4323742,121.84,121.81,4.3421142]
[1769361439379,9.73147718,121.85,121.81,4.3421142]
[1769361439576,4.4323742,121.85,121.81,4.3421142]
[1769361442185,9.73147718,121.85,121.81,4.3421142]
[1769361442391,4.4323742,121.84,121.81,4.3421142]
[1769361443585,4.4323742,121.84,121.8,4.3421142]
[1769361443969,9.73147718,121.84,121.8,4.3421142]
[1769361444587,4.4323742,121.84,121.8,4.3421142]
[1769361445592,4.4323742,121.84,121.81,4.3421142]
[1769361448085,4.4323742,121.84,121.79,66.5421142]
[1769361448086,4.4323742,121.83,121.79,66.5421142]
[1769361448386,4.4323742,121.83,121.79,4.3421142]
[1769361451460,3.9323742,121.83,121.79,4.3421142]
[1769361451769,9.23147718,121.83,121.79,4.3421142]
[1769361452475,9.01504462,121.83,121.79,4.3421142]
[1769361454093,3.71594164,121.83,121.79,4.3421142]
[1769361458788,3.71594164,121.83,121.78,4.26458461]
[1769361458992,4.26783059,121.78,121.75,4.26458461]
[1769361459184,4.26783059,121.84,121.77,4.26458461]
[1769361459383,10.33099932,121.85,121.77,4.26458461]
[1769361459384,4.26783059,121.82,121.78,4.26458461]
[1769361460188,4.26783059,121.83,121.79,4.26458461]
[1769361464982,4.26783059,121.83,121.8,4.26458461]
[1769361467711,4.26783059,121.84,121.81,4.26458461]
[1769361467881,4.26783059,121.84,121.81,6.57381521]
[1769361468081,6.59021185,121.87,121.82,4.26458461]
[1769361468082,4.26783059,121.86,121.82,4.26458461]
[1769361468284,4.26783059,121.86,121.82,6.57381521]
[1769361468691,4.26783059,121.86,121.83,4.26458461]
[1769361468885,8.54881184,121.87,121.83,4.26458461]
[1769361469298,4.26783059,121.86,121.83,4.26458461]
[1769361470100,4.26783059,121.85,121.81,4.26458461]
[1769361474511,4.26783059,121.83,121.8,4.26458461]
[1769361474888,4.26783059,121.84,121.8,4.26458461]
[1769361475409,4.26783059,121.84,121.8,6.57234807]
[1769361475711,4.26783059,121.84,121.81,4.26458461]
[1769361476484,4.26783059,121.83,121.79,6.57234807]
[1769361476691,4.26783059,121.83,121.79,4.26458461]
[1769361478313,4.26783059,121.83,121.8,4.26458461]
[1769361483320,3.26783059,121.83,121.8,4.26458461]
[1769361485539,8.70267744,121.87,121.83,4.47956587]
[1769361485994,8.70267744,121.87,121.83,6.78732933]
[1769361486823,4.42169619,121.86,121.83,6.78732933]
[1769361487412,8.70267744,121.87,121.84,6.78732933]
[1769361487614,8.70267744,121.87,121.84,4.47956587]
[1769361489114,4.28098125,121.87,121.85,6.78732933]
[1769361489320,4.28098125,121.87,121.86,6.78732933]
[1769361489631,4.62169619,121.9,121.86,6.78732933]
[1769361489807,4.62169619,121.9,121.87,2.30776346]
[1769361490721,4.42169619,121.89,121.85,6.32052553]
[1769361492009,4.42169619,121.87,121.82,4.01276207]
[1769361492206,4.42169619,121.87,121.83,6.32052553]
[1769361492407,4.42169619,121.87,121.84,2.30776346]
[1769361492602,4.42169619,121.87,121.84,6.32052553]
[1769361492821,4.42169619,121.87,121.82,8.20841621]
[1769361492822,4.42169619,121.89,121.86,2.30776346]
[1769361493008,4.42169619,121.89,121.87,2.30776346]
[1769361493499,4.62169619,121.9,121.87,2.30776346]
[1769361494338,0.2,121.9,121.88,2.30776346]
[1769361494504,0.2,121.9,121.89,2.30776346]
[1769361494713,4.28032565,121.91,121.89,6.32052553]
[1769361495028,4.41342601,121.93,121.9,2.30776346]
[1769361495330,8.77908958,121.94,121.91,2.30776346]
[1769361495528,4.27908958,121.94,121.91,2.30776346]
[1769361495826,4.5,121.93,121.91,2.30776346]
[1769361496238,4.5,121.93,121.92,2.30776346]
[1769361496410,8.77908958,121.94,121.92,2.30776346]
[1769361498129,4.5,121.93,121.86,20.5145147]
[1769361498321,4.5,121.92,121.88,2.30776346]
[1769361499134,4.5,121.93,121.9,2.30776346]
[1769361499636,4.5,121.93,121.88,8.20473009]
[1769361499836,4.5,121.93,121.9,2.30776346]
[1769361501635,4.27908958,121.94,121.92,2.30776346]
[1769361501831,4.27908958,121.94,121.93,2.30776346]
[1769361502433,4.17908958,121.94,121.93,2.30776346]
[1769361502614,4.17908958,121.94,121.92,2.30776346]
[1769361502812,4.17908958,121.94,121.91,2.30776346]
[1769361503039,8.67908958,121.94,121.91,2.30776346]
[1769361505638,8.67908958,121.94,121.92,2.30776346]
[1769361511126,30.0,121.95,121.93,2.30776346]
[1769361511342,4.5,121.94,121.92,2.30776346]
[1769361513042,4.5,121.94,121.91,2.30776346]
[1769361513652,4.5,121.94,121.9,2.30776346]
[1769361514745,4.5,121.94,121.89,2.30776346]
[1769361514950,28.10776346,121.95,121.9,2.30776346]
[1769361516248,2.30776346,121.93,121.87,4.32790879]
[1769361516550,2.30776346,121.92,121.86,6.63567225]
[1769361516948,4.25624347,121.91,121.86,6.63567225]
[1769361517552,4.25624347,121.9,121.85,2.30776346]
[1769361517855,4.25624347,121.9,121.85,6.63567225]
[1769361518030,4.25624347,121.89,121.85,6.63567225]
[1769361518550,4.25624347,121.89,121.85,4.32790879]
[1769361518751,4.25624347,121.89,121.84,6.63567225]
[1769361519370,4.25624347,121.87,121.82,6.63567225]
[1769361521354,4.25624347,121.87,121.83,2.30776346]
[1769361522561,4.25624347,121.87,121.82,4.32790879]
[1769361522770,4.25624347,121.87,121.83,2.30776346]
[1769361524268,4.25624347,121.87,121.84,2.30776346]
[1769361524734,4.25624347,121.89,121.86,2.30776346]
[1769361525269,6.56400693,121.89,121.84,2.30776346]
[1769361525468,4.25624347,121.87,121.84,2.30776346]
[1769361525675,4.25624347,121.87,121.84,6.63567225]
[1769361525843,4.25624347,121.88,121.85,6.63567225]
[1769361526043,4.25624347,121.9,121.86,2.30776346]
[1769361526658,4.25624347,121.9,121.87,2.30776346]
[1769361527340,0.2,121.96,121.87,99.24098628]
[1769361527563,2.0,122.0,121.9,8.51248694]
[1769361527750,6.78652065,121.99,121.88,5.34408856]
[1769361527951,6.78652065,121.99,121.93,2.30776346]
[1769361528248,4.47875719,121.99,121.96,2.30776346]
[1769361528448,4.47875719,121.99,121.91,5.34408856]
[1769361528449,0.2,121.99,121.97,2.30776346]
[1769361528853,2.0,122.0,121.98,2.30776346]
[1769361529680,2.0,122.0,121.97,5.28512386]
[1769361529971,4.5,121.99,121.95,13.48513504]
[1769361530145,4.5,121.99,121.95,5.28512386]
[1769361530768,4.5,121.99,121.93,8.20120797]
[1769361530945,7.28512386,122.0,121.92,13.48713593]
[1769361530946,4.5,121.97,121.92,13.48713593]
[1769361531555,4.5,121.97,121.92,13.49245494]
[1769361531754,5.29044287,121.97,121.92,5.29044287]
[1769361531956,4.5,121.96,121.92,5.29044287]
[1769361532165,4.5,121.96,121.91,5.29044287]
[1769361532543,4.5,121.96,121.9,8.2033196]
[1769361532544,4.5,121.96,121.92,5.29044287]
[1769361533561,4.5,121.94,121.89,13.4943345]
[1769361534270,4.5,121.93,121.88,8.20469798]
[1769361534463,4.5,121.93,121.89,5.29044287]
[1769361534769,4.5,121.93,121.89,13.4944976]
[1769361534972,4.5,121.93,121.89,5.29044287]
[1769361536674,4.5,121.93,121.88,8.20460856]
[1769361536875,4.5,121.93,121.88,13.49505143]
[1769361537573,4.5,121.93,121.91,5.29044287]
[1769361538154,4.5,121.95,121.92,5.29044287]
[1769361538870,4.5,121.96,121.93,5.29044287]
[1769361539079,4.5,121.96,121.94,5.29044287]
[1769361545257,4.5,121.98,121.94,5.29044287]
[1769361546458,4.5,121.94,121.88,8.20436994]
[1769361546653,4.5,121.94,121.9,5.29044287]
[1769361547378,4.5,121.93,121.89,5.29044287]
[1769361550468,4.5,121.93,121.89,13.49453129]
[1769361551663,4.5,121.93,121.89,10.5095727]
[1769361553292,4.5,121.91,121.87,10.51058719]
[1769361553460,4.5,121.9,121.86,2.30548428]
[1769361553785,4.5,121.9,121.85,2.30548428]
[1769361553983,4.5,121.9,121.85,10.51200379]
[1769361554163,6.80548428,121.9,121.85,10.51200379]
[1769361554361,4.5,121.89,121.85,10.51200379]
[1769361555680,4.5,121.86,121.81,10.51458929]
[1769361556183,4.5,121.85,121.81,2.30548428]
[1769361556688,4.5,121.85,121.8,2.30548428]
[1769361557184,4.5,121.85,121.8,10.51549626]
[1769361557695,4.5,121.85,121.81,5.30005964]
[1769361558474,4.5,121.85,121.82,5.30005964]
[1769361559783,4.5,121.85,121.81,5.30005964]
[1769361559986,4.5,121.85,121.8,13.51019929]
[1769361560290,4.5,121.85,121.81,5.30005964]
[1769361561176,4.5,121.85,121.8,5.30005964]
[1769361561691,4.5,121.84,121.8,5.30005964]
[1769361562492,4.5,121.84,121.8,13.51014883]
[1769361563683,4.5,121.84,121.8,5.30005964]
[1769361563885,4.5,121.84,121.8,8.21014039]
[1769361564091,4.5,121.84,121.8,13.51020003]
[1769361564898,4.5,121.84,121.81,5.30005964]
[1769361565198,4.5,121.86,121.82,5.30005964]
[1769361567405,4.5,121.86,121.81,13.50934515]
[1769361567801,4.5,121.85,121.79,20.62656917]
[1769361568100,4.5,121.84,121.8,5.30005964]
[1769361568600,9.80005964,121.83,121.79,0.1]
[1769361568807,4.5,121.82,121.79,0.1]
[1769361570380,9.80005964,121.82,121.79,0.1]
[1769361571302,4.5,121.82,121.79,0.1]
[1769361572900,4.5,121.83,121.8,5.30005964]
[1769361573091,4.5,121.86,121.82,5.30005964]
[1769361573703,4.5,121.86,121.79,62.3]
[1769361573904,4.5,121.86,121.81,5.30005964]
[1769361574107,4.5,121.86,121.82,5.30005964]
[1769361576403,4.5,121.87,121.83,5.30005964]
[1769361576707,4.5,121.87,121.84,5.30005964]
[1769361577299,4.5,121.86,121.81,5.30005964]
[1769361577506,4.5,121.84,121.8,5.30005964]
[1769361577705,4.5,121.84,121.8,13.51018068]
[1769361578784,4.5,121.84,121.81,13.50950971]
[1769361579213,4.5,121.84,121.81,5.30005964]
[1769361580110,4.5,121.84,121.8,5.30005964]
[1769361580313,4.5,121.84,121.8,13.50989947]
[1769361581698,4.5,121.84,121.8,10.51840838]
[1769361582316,4.5,121.85,121.81,2.30856855]
[1769361583315,4.5,121.9,121.84,2.30856855]
[1769361583525,4.5,121.89,121.85,2.30856855]
[1769361585115,4.5,121.89,121.85,10.51527226]
[1769361589799,4.5,121.89,121.86,2.30856855]
[1769361591103,4.5,121.89,121.84,8.20748522]
[1769361591312,4.5,121.89,121.85,2.30856855]
[1769361591707,4.5,121.88,121.84,2.30698559]
[1769361592006,4.5,121.88,121.84,10.51440806]
[1769361592926,4.5,121.88,121.85,2.30698559]
[1769361593603,4.5,121.91,121.87,2.30698559]
[1769361593805,4.5,121.91,121.88,2.30698559]
[1769361594406,4.5,121.92,121.89,2.30698559]
[1769361596903,4.5,121.95,121.91,2.30698559]
[1769361597102,4.5,121.95,121.93,2.30698559]
[1769361597303,4.5,121.97,121.93,2.30698559]
[1769361597925,4.5,121.97,121.92,2.30698559]
[1769361598428,6.5,122.0,121.92,28.70733367]
[1769361598722,6.5,122.0,121.98,2.30698559]
[1769361598723,4.5,121.99,121.98,2.30698559]
[1769361598927,4.5,121.99,121.97,2.30698559]
[1769361599450,4.5,121.99,121.96,2.30698559]
[1769361599631,4.5,121.99,121.96,5.28681345]
[1769361601326,4.5,121.98,121.93,8.20122549]
[1769361601512,4.5,121.98,121.93,5.28681345]
[1769361601907,4.5,121.97,121.93,13.48815126]
[1769361602113,4.5,121.97,121.94,5.28681345]
[1769361602422,4.5,121.97,121.93,5.28681345]
[1769361602606,4.5,121.97,121.94,5.28681345]
[1769361602800,4.27898031,121.97,121.96,5.28681345]
[1769361603304,4.5,121.99,121.96,5.28681345]
[1769361603605,8.77872075,121.99,121.96,5.28681345]
[1769361603916,4.27872075,121.99,121.97,5.28681345]
[1769361604616,4.27872075,121.99,121.98,5.28681345]
[1769361605327,4.27872075,121.99,121.97,5.28681345]
[1769361607706,4.5,121.98,121.95,5.28681345]
[1769361607908,4.5,121.98,121.94,13.48710242]
[1769361608430,4.5,121.98,121.95,5.28681345]
[1769361609730,4.5,121.98,121.93,5.28681345]
[1769361610919,4.5,121.98,121.94,5.28681345]
[1769361613911,4.5,121.98,121.95,5.28681345]
[1769361614107,4.5,121.98,121.97,5.28681345]
[1769361614314,8.77872075,121.99,121.97,5.28681345]
[1769361614628,4.27872075,121.99,121.98,5.28681345]
[1769361616212,6.5,122.0,121.98,5.28681345]
[1769361616411,0.444787,122.03,121.99,5.28681345]
[1769361616412,4.5,122.02,121.99,5.28681345]
[1769361616625,4.72281517,122.03,122.01,5.28681345]
[1769361616834,4.72281517,122.03,122.02,5.28681345]
[1769361617239,9.22281517,122.03,122.02,5.28681345]
[1769361617541,4.5,122.05,122.02,5.28681345]
[1769361617738,4.5,122.05,122.04,5.28681345]
[1769361618939,4.5,122.05,122.02,5.28681345]
[1769361619546,4.5,122.05,122.03,5.28681345]
[1769361626116,4.7,122.07,122.04,5.28681345]
[1769361626946,4.7,122.07,122.03,5.28681345]
[1769361627347,4.7,122.07,122.04,5.28681345]
[1769361628234,4.7,122.07,122.01,8.19575372]
[1769361628431,4.7,122.07,122.04,5.28681345]
[1769361629336,4.7,122.07,122.05,5.28681345]
[1769361629642,4.7,122.07,122.04,5.28681345]
[1769361631152,4.7,122.07,122.03,5.28681345]
[1769361631338,4.5,122.06,122.02,5.28681345]
[1769361632230,4.5,122.05,121.96,123.6913771]
[1769361632553,4.5,122.05,122.01,5.28681345]
[1769361633237,4.5,122.04,121.99,5.28681345]
[1769361633553,5.28681345,122.05,121.96,5.28681345]
[1769361633554,4.5,122.01,121.96,5.28681345]
[1769361633746,4.5,122.01,121.96,13.4862067]
[1769361633948,4.5,122.01,121.97,5.28681345]
[1769361635171,4.5,122.0,121.92,20.5049977]
[1769361635458,4.5,121.98,121.94,5.28681345]
[1769361635662,4.5,121.98,121.93,5.28681345]
[1769361635828,4.5,121.97,121.92,5.28681345]
[1769361636733,4.5,121.97,121.93,5.28681345]
[1769361637234,4.5,121.97,121.9,20.50749087]
[1769361637434,4.5,121.97,121.92,5.28681345]
[1769361637852,4.5,121.97,121.93,5.28681345]
[1769361638327,4.5,121.97,121.94,5.28681345]
[1769361638731,4.5,121.97,121.93,5.28681345]
[1769361639463,4.5,121.97,121.94,5.28681345]
[1769361640052,4.5,121.97,121.95,5.28681345]
[1769361640257,4.5,121.98,121.96,5.28681345]
[1769361640750,20.48269694,122.06,121.98,4.07644914]
[1769361640953,5.28681345,122.02,121.96,9.36326259]
[1769361642530,4.3424648,122.01,121.96,9.36326259]
[1769361642849,4.3424648,122.01,121.96,5.28681345]
[1769361643048,4.3424648,122.01,121.96,9.36326259]
[1769361643739,4.3424648,122.01,121.96,6.37912346]
[1769361643948,4.3424648,122.0,121.96,2.30267432]
[1769361647563,4.3424648,121.99,121.95,2.30267432]
[1769361647859,4.3424648,121.99,121.95,6.37912346]
[1769361649169,4.3424648,121.99,121.95,4.07644914]
[1769361649348,4.3424648,121.98,121.93,14.58027097]
[1769361649543,4.3424648,121.96,121.92,14.58119629]
[1769361650752,4.3424648,121.96,121.93,2.30267432]
[1769361651548,4.3424648,121.96,121.93,6.37912346]
[1769361651753,4.3424648,121.96,121.93,5.87912346]
[1769361652262,4.3424648,121.96,121.91,4.07644914]
[1769361652471,4.3424648,121.96,121.93,6.37912346]
[1769361652656,4.3424648,121.96,121.93,2.30267432]
[1769361653358,4.3424648,121.98,121.93,6.37912346]
[1769361653558,4.3424648,121.99,121.96,2.30298533]
[1769361653768,4.3424648,121.99,121.95,6.37943447]
[1769361654165,4.3424648,121.99,121.96,2.30298533]
[1769361654771,4.3424648,121.99,121.95,6.37943447]
[1769361654954,4.3424648,121.99,121.93,12.27787258]
[1769361655159,2.30298533,122.0,121.93,12.27787258]
[1769361655160,4.3424648,121.97,121.93,6.37943447]
[1769361655660,4.3424648,121.97,121.93,14.58036709]
[1769361656048,4.3424648,121.97,121.94,10.50372626]
[1769361657055,4.3424648,121.99,121.95,4.07644914]
[1769361657256,4.3424648,122.02,121.98,2.30298533]
[1769361657660,4.3424648,122.03,121.99,6.37943447]
[1769361658677,4.3424648,122.03,122.0,2.30298533]
[1769361659076,4.3424648,122.03,122.0,10.49951552]
[1769361659275,4.3424648,122.03,122.0,2.30298533]
[1769361659570,4.3424648,122.03,121.99,4.07644914]
[1769361659775,4.3424648,122.03,122.0,5.2829915]